fUST/lending_fUST_20250624
["ID","MTS","AMOUNT","RATE_DAILY","PERIOD"]
[367188459,1750696252086,-412.36980929,0.00022128,2]
[367190309,1750696325548,161.383818,0.00013699,2]
[367190310,1750696343207,-268.0861953,0.000199,2]
[367190311,1750696359159,-160.0,0.000199,2]
[367190312,1750696396073,392.61,0.0001911,2]
[367190316,1750696737193,-198.47922,0.00019684,2]
[367190317,1750696737221,-487.90238752,0.000199,2]
[367190318,1750696737249,-175.00645493,0.0001993,2]
[367190319,1750696737277,-300.0,0.00020544,2]
[367190320,1750696737306,-88.61193755,0.00020545,2]
[367190321,1750696741132,-1111.38806245,0.00020545,2]
[367190322,1750696741161,-300.0,0.00020545,2]
[367190323,1750696741188,-460.0,0.00020545,2]
[367190324,1750696741216,-460.0,0.00020545,2]
[367190325,1750696741242,-460.0,0.00020545,2]
[367190326,1750696741269,-1000.0,0.00020545,2]
[367190327,1750696741296,-460.0,0.00020545,2]
[367190328,1750696741327,-460.0,0.00020545,2]
[367190329,1750696741354,-288.61193755,0.00020545,2]
[367190330,1750696742239,-171.38806245,0.00020545,2]
[367190331,1750696742267,-460.0,0.00020545,2]
[367190332,1750696742295,-460.0,0.00020545,2]
[367190333,1750696742329,-460.0,0.00020545,2]
[367190334,1750696742357,-460.0,0.00020545,2]
[367190335,1750696742385,-460.0,0.00020545,2]
[367190336,1750696742412,-524.08,0.00020545,2]
[367190337,1750696742445,-460.0,0.00020546,2]
[367190338,1750696742486,-764.48,0.00020546,2]
[367190339,1750696742520,-460.0,0.00020546,2]
[367190340,1750696742563,-320.05193755,0.00020546,2]
[367190341,1750696743241,-139.94806245,0.00020546,2]
[367190342,1750696743279,-460.0,0.00020546,2]
[367190343,1750696743323,-460.0,0.00020546,2]
[367190344,1750696743365,-733.59,0.00020546,2]
[367190345,1750696743402,-460.0,0.00020546,2]
[367190346,1750696743439,-821.95,0.00020546,2]
[367190347,1750696743481,-616.46,0.00020546,2]
[367190348,1750696743518,-460.0,0.00020546,2]
[367190349,1750696743559,-623.62,0.00020546,2]
[367190350,1750696743590,-224.43193755,0.00020546,2]
[367190351,1750696744353,-300.0,0.00020544,2]
[367190352,1750696744388,-235.56806245,0.00020546,2]
[367190353,1750696744420,-460.0,0.00020546,2]
[367190354,1750696744453,-460.0,0.00020546,2]
[367190355,1750696744485,-460.0,0.00020546,2]
[367190356,1750696744516,-460.0,0.00020546,2]
[367190357,1750696744546,-468.54,0.00020546,2]
[367190358,1750696744581,-460.0,0.00020546,2]
[367190359,1750696744611,-460.0,0.00020546,2]
[367190360,1750696744642,-460.0,0.00020546,2]
[367190361,1750696744672,-460.0,0.00020546,2]
[367190362,1750696744703,-315.89193755,0.00020546,2]
[367190363,1750696745288,-460.0,0.00020545,2]
[367190364,1750696745321,-144.10806245,0.00020546,2]
[367190365,1750696745688,-460.0,0.00020546,2]
[367190366,1750696745717,-460.0,0.00020546,2]
[367190367,1750696745746,-623.14,0.00020546,2]
[367190368,1750696745773,-460.0,0.00020546,2]
[367190369,1750696745800,-460.0,0.00020546,2]
[367190370,1750696745839,-545.56,0.00020546,2]
[367190371,1750696745872,-460.0,0.00020546,2]
[367190372,1750696745901,-645.72,0.00020546,2]
[367190373,1750696745929,-281.47193755,0.00020546,2]
[367190374,1750696746521,-178.52806245,0.00020546,2]
[367190375,1750696746549,-460.0,0.00020546,2]
[367190376,1750696746583,-460.0,0.00020546,2]
[367190377,1750696746611,-494.38,0.00020546,2]
[367190378,1750696746637,-460.0,0.00020546,2]
[367190379,1750696746665,-662.23,0.00020546,2]
[367190380,1750696746693,-699.97,0.00020546,2]
[367190381,1750696746723,-460.0,0.00020546,2]
[367190382,1750696746751,-1124.89193755,0.00020546,2]
[367190383,1750696825364,150.0,0.00026485,60]
[367190384,1750696842965,150.0,0.00026485,60]
[367190385,1750696870799,150.0,0.00026485,60]
[367190386,1750696883778,150.0,0.00026485,60]
[367190388,1750696939387,-205.84433458,0.00019415,2]
[367190389,1750696944375,-182.84925607,0.00019415,2]
[367190392,1750696978721,-154.17563185,0.00019415,2]
[367190399,1750697124468,5000.0,0.0001911,2]
[367190401,1750697126804,10054.57787648,0.00026487,60]
[367190403,1750697140334,-197.13608938,0.00019316,2]
[367190407,1750697195320,-4427.0,0.00019316,2]
[367190408,1750697200685,724.3703479,0.00018611,2]
[367190409,1750697208133,240.67842898,0.00019023,2]
[367190410,1750697222758,150.0,0.00026487,60]
[367190411,1750697252134,-65.60092584,0.00019316,2]
[367190412,1750697252159,-218.40625572,0.0001951,2]
[367190413,1750697252182,-300.0,0.0001961,2]
[367190414,1750697252204,-805.9,0.0001961,2]
[367190415,1750697252228,-300.0,0.0001961,2]
[367190416,1750697252248,-264.64920934,0.0001961,2]
[367190417,1750697268357,-151.0,0.00019414,2]
[367190418,1750697312669,159.817369,0.00013699,2]
[367190420,1750697345177,-46.13608938,0.00019414,2]
[367190421,1750697345198,-218.40625571,0.00019509,2]
[367190422,1750697345219,-187.57983738,0.0001951,2]
[367190423,1750697345240,-300.0,0.00019609,2]
[367190424,1750697345261,-151.7671813,0.0001961,2]
[367190425,1750697345283,-460.0,0.0001961,2]
[367190426,1750697345303,-460.0,0.0001961,2]
[367190427,1750697345334,-460.0,0.0001961,2]
[367190428,1750697345359,-460.0,0.0001961,2]
[367190429,1750697345380,-460.0,0.0001961,2]
[367190430,1750697345403,-460.0,0.0001961,2]
[367190431,1750697345426,-460.0,0.0001961,2]
[367190432,1750697345448,-460.0,0.0001961,2]
[367190433,1750697345470,-460.0,0.0001961,2]
[367190434,1750697345492,-618.81,0.0001961,2]
[367190435,1750697345513,-460.0,0.0001961,2]
[367190436,1750697345536,-460.0,0.0001961,2]
[367190437,1750697345558,-460.0,0.0001961,2]
[367190438,1750697345580,-460.0,0.0001961,2]
[367190439,1750697345602,-473.78,0.0001961,2]
[367190440,1750697345624,-300.0,0.00019611,2]
[367190441,1750697345646,-300.0,0.00019611,2]
[367190442,1750697345670,-1200.0,0.00019611,2]
[367190443,1750697345692,-300.0,0.00019611,2]
[367190444,1750697345715,-500.0,0.00019611,2]
[367190445,1750697345737,-500.0,0.00019611,2]
[367190446,1750697345760,-500.0,0.00019611,2]
[367190447,1750697345783,-500.0,0.00019611,2]
[367190448,1750697345805,-500.0,0.00019611,2]
[367190449,1750697345827,-500.0,0.00019611,2]
[367190450,1750697345850,-500.0,0.00019611,2]
[367190451,1750697345871,-500.0,0.00019611,2]
[367190452,1750697345893,-500.0,0.00019611,2]
[367190453,1750697345915,-500.0,0.00019611,2]
[367190454,1750697345936,-500.0,0.00019611,2]
[367190455,1750697345958,-500.0,0.00019611,2]
[367190456,1750697345980,-500.0,0.00019611,2]
[367190457,1750697346002,-500.0,0.00019611,2]
[367190458,1750697346028,-500.0,0.00019611,2]
[367190459,1750697346050,-500.0,0.00019611,2]
[367190460,1750697346073,-500.0,0.00019611,2]
[367190461,1750697346095,-500.0,0.00019611,2]
[367190462,1750697346121,-500.0,0.00019611,2]
[367190463,1750697346146,-314.67675412,0.00019611,2]
[367190464,1750697346172,-500.0,0.00019611,2]
[367190465,1750697346195,-500.0,0.00019611,2]
[367190466,1750697346218,-500.0,0.00019611,2]
[367190467,1750697346241,-500.0,0.00019611,2]
[367190468,1750697346264,-329.89238723,0.00019611,2]
[367190469,1750697346292,-500.0,0.00019611,2]
[367190470,1750697346314,-500.0,0.00019611,2]
[367190471,1750697346338,-500.0,0.00019611,2]
[367190472,1750697346360,-500.0,0.00019611,2]
[367190473,1750697346382,-500.0,0.00019611,2]
[367190474,1750697346406,-500.0,0.00019611,2]
[367190475,1750697346429,-500.0,0.00019611,2]
[367190476,1750697346451,-500.0,0.00019611,2]
[367190477,1750697346473,-300.0,0.00019611,2]
[367190478,1750697346497,-500.0,0.00019611,2]
[367190479,1750697346519,-500.0,0.00019611,2]
[367190480,1750697346545,-500.0,0.00019611,2]
[367190481,1750697346570,-248.87207391,0.00019611,2]
[367190482,1750697346593,-500.0,0.00019611,2]
[367190483,1750697346617,-500.0,0.00019611,2]
[367190484,1750697346640,-500.0,0.00019611,2]
[367190485,1750697346664,-426.50235405,0.00019611,2]
[367190486,1750697346686,-300.0,0.00019611,2]
[367190487,1750697346707,-500.0,0.00019611,2]
[367190488,1750697346730,-289.54863649,0.00019611,2]
[367190489,1750697346756,-543.41281454,0.00019611,2]
[367190490,1750697346780,-500.0,0.00019611,2]
[367190491,1750697346801,-421.66646305,0.00019611,2]
[367190492,1750697346823,-500.0,0.00019611,2]
[367190493,1750697346846,-500.0,0.00019611,2]
[367190494,1750697346869,-500.0,0.00019611,2]
[367190495,1750697346892,-500.0,0.00019611,2]
[367190496,1750697346913,-500.0,0.00019611,2]
[367190497,1750697346937,-500.0,0.00019611,2]
[367190498,1750697346959,-474.70357199,0.00019611,2]
[367190499,1750697346982,-500.0,0.00019611,2]
[367190500,1750697347006,-500.0,0.00019611,2]
[367190501,1750697347032,-500.0,0.00019611,2]
[367190502,1750697347054,-500.0,0.00019611,2]
[367190503,1750697347076,-500.0,0.00019611,2]
[367190504,1750697347097,-500.0,0.00019611,2]
[367190505,1750697347118,-460.0,0.00019612,2]
[367190506,1750697347140,-460.0,0.00019612,2]
[367190507,1750697347160,-460.0,0.00019612,2]
[367190508,1750697347184,-460.0,0.00019612,2]
[367190509,1750697347207,-460.0,0.00019612,2]
[367190510,1750697347228,-742.52,0.00019612,2]
[367190511,1750697347249,-460.0,0.00019612,2]
[367190512,1750697347270,-278.3828164,0.00019612,2]
[367190513,1750697347294,-422.83804642,0.00019612,2]
[367190514,1750697347316,-634.64,0.00019612,2]
[367190515,1750697347338,-693.26,0.00019612,2]
[367190516,1750697347359,-324.12749066,0.00019612,2]
[367190517,1750697347381,-3496.13,0.00019612,2]
[367190518,1750697347402,-460.0,0.00019612,2]
[367190519,1750697347423,-460.0,0.00019612,2]
[367190520,1750697347444,-460.0,0.00019612,2]
[367190521,1750697347465,-767.77,0.00019612,2]
[367190522,1750697347486,-460.0,0.00019612,2]
[367190523,1750697347506,-460.0,0.00019612,2]
[367190524,1750697347526,-460.0,0.00019612,2]
[367190525,1750697347548,-460.0,0.00019612,2]
[367190526,1750697347568,-458.00384516,0.00019612,2]
[367190527,1750697347588,-460.0,0.00019612,2]
[367190528,1750697347618,-460.0,0.00019612,2]
[367190529,1750697347642,-460.0,0.00019612,2]
[367190530,1750697347664,-460.0,0.00019612,2]
[367190531,1750697347688,-4710.98,0.00019612,2]
[367190532,1750697347710,-460.0,0.00019612,2]
[367190533,1750697347734,-460.0,0.00019612,2]
[367190534,1750697347755,-460.0,0.00019612,2]
[367190535,1750697347776,-460.0,0.00019612,2]
[367190536,1750697347798,-460.0,0.00019612,2]
[367190537,1750697347818,-460.0,0.00019612,2]
[367190538,1750697347839,-460.0,0.00019612,2]
[367190539,1750697347859,-190.84577573,0.00019612,2]
[367190540,1750697347880,-460.0,0.00019612,2]
[367190541,1750697347901,-460.0,0.00019612,2]
[367190542,1750697347924,-3331.18,0.00019612,2]
[367190543,1750697347946,-460.0,0.00019612,2]
[367190544,1750697347967,-460.0,0.00019612,2]
[367190545,1750697347989,-460.0,0.00019612,2]
[367190546,1750697348011,-269.19232647,0.00019612,2]
[367190547,1750697348038,-597.17,0.00019612,2]
[367190548,1750697348060,-1808.96,0.00019612,2]
[367190549,1750697348081,-460.0,0.00019612,2]
[367190550,1750697348102,-509.724868,0.00019612,2]
[367190551,1750697348124,-460.0,0.00019612,2]
[367190552,1750697348146,-522.83,0.00019612,2]
[367190553,1750697348176,-993.39,0.00019612,2]
[367190554,1750697348197,-460.0,0.00019612,2]
[367190555,1750697348220,-460.0,0.00019612,2]
[367190556,1750697348242,-460.0,0.00019612,2]
[367190557,1750697348264,-460.0,0.00019612,2]
[367190558,1750697348288,-460.0,0.00019612,2]
[367190559,1750697348312,-460.0,0.00019612,2]
[367190560,1750697348334,-460.0,0.00019612,2]
[367190561,1750697348356,-1938.6,0.00019612,2]
[367190562,1750697348377,-607.75155152,0.00019612,2]
[367190563,1750697348635,-460.0,0.00019612,2]
[367190564,1750697348655,-460.0,0.00019612,2]
[367190565,1750697348677,-4171.75,0.00019612,2]
[367190566,1750697348698,-414.04983101,0.00019612,2]
[367190567,1750697348720,-460.0,0.00019612,2]
[367190568,1750697348741,-798.39,0.00019612,2]
[367190569,1750697348761,-662.12,0.00019612,2]
[367190570,1750697348784,-22554.15190698,0.00019612,2]
[367190571,1750697361209,-151.0,0.00019414,2]
[367190572,1750697361230,-460.0,0.0001961,2]
[367190573,1750697361252,-460.0,0.0001961,2]
[367190574,1750697361272,-644.67,0.00019612,2]
[367190575,1750697361297,-1922.25,0.00019612,2]
[367190576,1750697361317,-440.04488353,0.00019612,2]
[367190577,1750697361339,-500.56,0.00019612,2]
[367190578,1750697361361,-1840.90621438,0.00019612,2]
[367190579,1750697365096,-460.0,0.0001961,2]
[367190580,1750697365117,-460.0,0.0001961,2]
[367190581,1750697365138,-460.0,0.00019612,2]
[367190582,1750697365160,-352.61425874,0.00019612,2]
[367190592,1750697432030,-158.66968434,0.0001951,2]
[367190593,1750697432040,-300.0,0.00019609,2]
[367190594,1750697432049,-1200.0,0.00019609,2]
[367190595,1750697432058,-300.0,0.00019609,2]
[367190596,1750697432067,-300.0,0.00019609,2]
[367190597,1750697432076,-300.0,0.00019609,2]
[367190598,1750697432088,-574.38350687,0.0001961,2]
[367190599,1750697432097,-460.0,0.0001961,2]
[367190600,1750697432106,-664.37,0.0001961,2]
[367190601,1750697432115,-246.86011779,0.0001961,2]
[367190603,1750697432124,-460.0,0.0001961,2]
[367190605,1750697432133,-460.0,0.0001961,2]
[367190606,1750697432142,-460.0,0.0001961,2]
[367190607,1750697432152,-460.0,0.0001961,2]
[367190608,1750697432160,-618.48,0.0001961,2]
[367190610,1750697432169,-460.0,0.0001961,2]
[367190612,1750697432178,-460.0,0.0001961,2]
[367190615,1750697432189,-730.09,0.0001961,2]
[367190617,1750697432199,-469.70565677,0.0001961,2]
[367190619,1750697432208,-924.89,0.0001961,2]
[367190621,1750697432217,-500.0,0.00019611,2]
[367190623,1750697432226,-200.0,0.00019611,2]
[367190625,1750697432237,-460.0,0.00019612,2]
[367190627,1750697432246,-155.0,0.00019612,2]
[367190628,1750697432256,-1338.64,0.00019612,2]
[367190629,1750697432265,-460.0,0.00019612,2]
[367190630,1750697432274,-407.35557638,0.00019612,2]
[367190631,1750697432284,-460.0,0.00019612,2]
[367190632,1750697432293,-438.72843198,0.00019612,2]
[367190633,1750697432303,-2510.12,0.00019612,2]
[367190634,1750697432312,-460.0,0.00019612,2]
[367190635,1750697432321,-1107.63974911,0.00019612,2]
[367190636,1750697432347,-889.16025089,0.00019612,2]
[367190637,1750697432357,-460.0,0.00019612,2]
[367190638,1750697432366,-4607.43,0.00019612,2]
[367190639,1750697432375,-945.39,0.00019612,2]
[367190640,1750697432385,-460.0,0.00019612,2]
[367190641,1750697432394,-460.0,0.00019612,2]
[367190642,1750697432404,-460.0,0.00019612,2]
[367190643,1750697432413,-460.0,0.00019612,2]
[367190644,1750697432423,-607.26,0.00019612,2]
[367190645,1750697432432,-460.0,0.00019612,2]
[367190646,1750697432441,-460.0,0.00019612,2]
[367190647,1750697432451,-152.3276199,0.00019612,2]
[367190648,1750697432460,-158.66968433,0.00019784,2]
[367190649,1750697432470,-562.26244487,0.00019884,2]
[367190650,1750697432482,-243.63755513,0.00019884,2]
[367190651,1750697432491,-460.0,0.00019884,2]
[367190652,1750697432501,-460.0,0.00019884,2]
[367190653,1750697432510,-460.0,0.00019884,2]
[367190654,1750697432520,-222.23631958,0.00019884,2]
[367190655,1750697432529,-460.0,0.00019884,2]
[367190656,1750697432538,-460.0,0.00019884,2]
[367190657,1750697432547,-618.81,0.00019884,2]
[367190658,1750697432557,-460.0,0.00019884,2]
[367190659,1750697432566,-460.0,0.00019884,2]
[367190660,1750697432576,-547.35168835,0.00019884,2]
[367190661,1750697432588,-473.78,0.00019884,2]
[367190662,1750697432597,-460.0,0.00019884,2]
[367190663,1750697432607,-460.0,0.00019884,2]
[367190664,1750697432617,-664.37,0.00019884,2]
[367190665,1750697432626,-460.0,0.00019884,2]
[367190666,1750697432635,-412.50022847,0.00019884,2]
[367190667,1750697432645,-460.0,0.00019884,2]
[367190668,1750697432654,-618.48,0.00019884,2]
[367190669,1750697432664,-460.0,0.00019884,2]
[367190670,1750697432673,-730.09,0.00019884,2]
[367190671,1750697432683,-924.89,0.00019884,2]
[367190672,1750697432692,-2599.5904381,0.00019884,2]
[367190673,1750697432701,-460.0,0.00019886,2]
[367190674,1750697432710,-460.0,0.00019886,2]
[367190675,1750697432720,-460.0,0.00019886,2]
[367190676,1750697432729,-460.0,0.00019886,2]
[367190677,1750697432738,-742.52,0.00019886,2]
[367190678,1750697432748,-460.0,0.00019886,2]
[367190679,1750697432757,-460.0,0.00019886,2]
[367190680,1750697432766,-353.91445612,0.00019886,2]
[367190681,1750697432775,-460.0,0.00019886,2]
[367190682,1750697432784,-767.77,0.00019886,2]
[367190683,1750697432793,-460.0,0.00019886,2]
[367190684,1750697432803,-460.0,0.00019886,2]
[367190685,1750697432812,-460.0,0.00019886,2]
[367190686,1750697432822,-460.0,0.00019886,2]
[367190687,1750697432832,-233.13326163,0.00019886,2]
[367190688,1750697432841,-2611.38494945,0.00019886,2]
[367190713,1750697438552,-3116.6512803,0.0001961,2]
[367190714,1750697438564,-1289.2287197,0.0001961,2]
[367190715,1750697438837,-460.0,0.00019612,2]
[367190716,1750697438850,-1523.77095789,0.00019884,2]
[367190717,1750697438862,-2556.15718533,0.00019884,2]
[367190718,1750697438875,-325.95185678,0.00019884,2]
[367190719,1750697438884,-500.0,0.00019885,2]
[367190720,1750697438894,-203.32137636,0.00019885,2]
[367190721,1750697438904,-380.18516256,0.00019885,2]
[367190722,1750697438913,-200.0,0.00019885,2]
[367190723,1750697438927,-269.61137267,0.00019885,2]
[367190724,1750697438937,-560.37920162,0.00019885,2]
[367190725,1750697438946,-194.31911932,0.00019885,2]
[367190726,1750697438956,-330.52261911,0.00019885,2]
[367190727,1750697438967,-198.83873739,0.00019885,2]
[367190728,1750697438976,-200.0,0.00019885,2]
[367190729,1750697438986,-460.0,0.00019886,2]
[367190730,1750697438996,-460.0,0.00019886,2]
[367190731,1750697439006,-460.0,0.00019886,2]
[367190732,1750697439017,-460.0,0.00019886,2]
[367190733,1750697439027,-460.0,0.00019886,2]
[367190734,1750697439037,-460.0,0.00019886,2]
[367190735,1750697439048,-446.66811015,0.00019886,2]
[367190736,1750697439058,-460.0,0.00019886,2]
[367190737,1750697439068,-3331.18,0.00019886,2]
[367190738,1750697439078,-460.0,0.00019886,2]
[367190739,1750697439087,-460.0,0.00019886,2]
[367190740,1750697439098,-597.17,0.00019886,2]
[367190741,1750697439108,-1808.96,0.00019886,2]
[367190742,1750697439119,-522.83,0.00019886,2]
[367190743,1750697439128,-993.39,0.00019886,2]
[367190744,1750697439138,-460.0,0.00019886,2]
[367190745,1750697439147,-460.0,0.00019886,2]
[367190746,1750697439156,-460.0,0.00019886,2]
[367190748,1750697439166,-460.0,0.00019886,2]
[367190749,1750697439176,-460.0,0.00019886,2]
[367190750,1750697439190,-460.0,0.00019886,2]
[367190751,1750697439199,-460.0,0.00019886,2]
[367190752,1750697439209,-1938.6,0.00019886,2]
[367190753,1750697439219,-460.0,0.00019886,2]
[367190754,1750697439229,-460.0,0.00019886,2]
[367190755,1750697439240,-4171.75,0.00019886,2]
[367190756,1750697439250,-460.0,0.00019886,2]
[367190757,1750697439260,-798.39,0.00019886,2]
[367190758,1750697439271,-662.12,0.00019886,2]
[367190759,1750697439281,-644.67,0.00019886,2]
[367190760,1750697439291,-1922.25,0.00019886,2]
[367190761,1750697439300,-500.56,0.00019886,2]
[367190762,1750697439310,-460.0,0.00019886,2]
[367190763,1750697439319,-1338.64,0.00019886,2]
[367190764,1750697439329,-2510.12,0.00019886,2]
[367190765,1750697439339,-460.0,0.00019886,2]
[367190766,1750697439356,-1996.8,0.00019886,2]
[367190767,1750697439366,-460.0,0.00019886,2]
[367190768,1750697439376,-4607.43,0.00019886,2]
[367190769,1750697439389,-945.39,0.00019886,2]
[367190770,1750697439402,-460.0,0.00019886,2]
[367190771,1750697439413,-460.0,0.00019886,2]
[367190772,1750697439424,-607.26,0.00019886,2]
[367190773,1750697439434,-339.67707577,0.00019886,2]
[367190774,1750697439445,-460.0,0.00019886,2]
[367190775,1750697439455,-460.0,0.00019886,2]
[367190776,1750697439465,-805.9,0.00020158,2]
[367190777,1750697439475,-460.0,0.00020158,2]
[367190778,1750697439484,-460.0,0.00020158,2]
[367190779,1750697439495,-460.0,0.00020158,2]
[367190780,1750697439505,-460.0,0.00020158,2]
[367190781,1750697439516,-618.81,0.00020158,2]
[367190782,1750697439526,-460.0,0.00020158,2]
[367190783,1750697439536,-473.78,0.00020158,2]
[367190784,1750697439545,-460.0,0.00020158,2]
[367190785,1750697439556,-460.0,0.00020158,2]
[367190786,1750697439566,-664.37,0.00020158,2]
[367190787,1750697439576,-460.0,0.00020158,2]
[367190788,1750697439585,-460.0,0.00020158,2]
[367190789,1750697439599,-618.48,0.00020158,2]
[367190790,1750697439609,-730.09,0.00020158,2]
[367190791,1750697439618,-924.89,0.00020158,2]
[367190792,1750697439628,-4405.88,0.00020158,2]
[367190793,1750697439638,-460.0,0.0002016,2]
[367190794,1750697439647,-460.0,0.0002016,2]
[367190796,1750697439656,-460.0,0.0002016,2]
[367190798,1750697439666,-742.52,0.0002016,2]
[367190801,1750697439675,-557.4872749,0.0002016,2]
[367190803,1750697439685,-460.0,0.0002016,2]
[367190805,1750697439695,-767.77,0.0002016,2]
[367190807,1750697439705,-324.25642,0.0002016,2]
[367190808,1750697439714,-460.0,0.0002016,2]
[367190809,1750697439724,-460.0,0.0002016,2]
[367190810,1750697439734,-460.0,0.0002016,2]
[367190811,1750697439744,-460.0,0.0002016,2]
[367190812,1750697439754,-460.0,0.0002016,2]
[367190813,1750697439764,-460.0,0.0002016,2]
[367190814,1750697439773,-460.0,0.0002016,2]
[367190815,1750697439784,-604.46921883,0.0002016,2]
[367190816,1750697439793,-460.0,0.0002016,2]
[367190817,1750697439804,-460.0,0.0002016,2]
[367190818,1750697439814,-460.0,0.0002016,2]
[367190820,1750697439823,-3331.18,0.0002016,2]
[367190822,1750697439834,-460.0,0.0002016,2]
[367190824,1750697439845,-460.0,0.0002016,2]
[367190826,1750697439854,-597.17,0.0002016,2]
[367190828,1750697439864,-1808.96,0.0002016,2]
[367190830,1750697439874,-522.83,0.0002016,2]
[367190831,1750697439884,-993.39,0.0002016,2]
[367190833,1750697439894,-404.11422006,0.0002016,2]
[367190834,1750697439903,-460.0,0.0002016,2]
[367190836,1750697439913,-460.0,0.0002016,2]
[367190838,1750697439922,-460.0,0.0002016,2]
[367190839,1750697439932,-460.0,0.0002016,2]
[367190841,1750697439942,-460.0,0.0002016,2]
[367190843,1750697439951,-460.0,0.0002016,2]
[367190844,1750697439961,-1938.6,0.0002016,2]
[367190846,1750697439970,-401.01402416,0.0002016,2]
[367190848,1750697439980,-460.0,0.0002016,2]
[367190849,1750697439989,-4171.75,0.0002016,2]
[367190851,1750697439999,-460.0,0.0002016,2]
[367190853,1750697440008,-798.39,0.0002016,2]
[367190854,1750697440019,-662.12,0.0002016,2]
[367190856,1750697440029,-644.67,0.0002016,2]
[367190857,1750697440039,-1922.25,0.0002016,2]
[367190859,1750697440048,-500.56,0.0002016,2]
[367190861,1750697440058,-460.0,0.0002016,2]
[367190863,1750697440067,-155.0,0.0002016,2]
[367190864,1750697440077,-1338.64,0.0002016,2]
[367190866,1750697440086,-2510.12,0.0002016,2]
[367190868,1750697440097,-460.0,0.0002016,2]
[367190869,1750697440107,-1996.8,0.0002016,2]
[367190871,1750697440116,-460.0,0.0002016,2]
[367190872,1750697440126,-4607.43,0.0002016,2]
[367190874,1750697440136,-945.39,0.0002016,2]
[367190876,1750697440146,-460.0,0.0002016,2]
[367190877,1750697440156,-460.0,0.0002016,2]
[367190879,1750697440166,-607.26,0.0002016,2]
[367190881,1750697440175,-460.0,0.0002016,2]
[367190882,1750697440186,-240.15,0.00020423,3]
[367190884,1750697440198,-720.47,0.00020423,3]
[367190885,1750697440207,-805.9,0.00020432,2]
[367190887,1750697440217,-460.0,0.00020432,2]
[367190889,1750697440226,-465.92024263,0.00020432,2]
[367190890,1750697440237,-460.0,0.00020432,2]
[367190892,1750697440247,-618.81,0.00020432,2]
[367190893,1750697440256,-473.78,0.00020432,2]
[367190895,1750697440269,-460.0,0.00020432,2]
[367190897,1750697440279,-460.0,0.00020432,2]
[367190898,1750697440289,-664.37,0.00020432,2]
[367190900,1750697440298,-183.09790103,0.00020432,2]
[367190902,1750697440318,-460.0,0.00020432,2]
[367190903,1750697440328,-618.48,0.00020432,2]
[367190904,1750697440339,-730.09,0.00020432,2]
[367190905,1750697440353,-924.89,0.00020432,2]
[367190906,1750697440363,-476.5441236,0.00020433,2]
[367190907,1750697440373,-370.0,0.00020433,2]
[367190908,1750697440383,-514.67527901,0.00020433,2]
[367190910,1750697440393,-742.52,0.00020433,2]
[367190912,1750697440404,-460.0,0.00020433,2]
[367190913,1750697440414,-767.77,0.00020433,2]
[367190915,1750697440424,-383.18637618,0.00020433,2]